bitfinex-derivatives/quotes_SOLF0:USTF0_20251223
["timestamp","ask_amount","ask_price","bid_price","bid_amount"]
[1766511216026,6.02339042,124.28,124.25,0.06146621]
[1766511216524,4.21,124.28,124.25,0.06146621]
[1766511220629,4.35,124.26,124.2,4.34]
[1766511220826,1.81339042,124.25,124.2,4.34]
[1766511221732,0.05304372,124.24,124.21,0.05958391]
[1766511223228,4.40304372,124.24,124.21,0.05958391]
[1766511225536,0.05304372,124.24,124.21,0.05958391]
[1766511226932,4.40304372,124.24,124.21,0.05958391]
[1766511227332,6.21643414,124.24,124.21,0.05958391]
[1766511230240,4.35,124.23,124.18,4.34]
[1766511230435,4.35,124.23,124.17,4.34]
[1766511231236,4.35,124.23,124.18,7.2509]
[1766511231436,0.05426288,124.21,124.19,0.0599079]
[1766511234045,0.05426288,124.21,124.15,99.36]
[1766511234236,0.05426288,124.21,124.15,95.02]
[1766511234434,0.05426288,124.21,124.16,4.34]
[1766511235144,0.05426288,124.21,124.17,0.06137535]
[1766511235442,0.05426288,124.21,124.17,7.31297535]
[1766511235739,0.05426288,124.21,124.18,4.34]
[1766511235938,6.16339042,124.24,124.18,4.34]
[1766511236434,4.35,124.23,124.18,11.591]
[1766511236943,0.05936469,124.22,124.19,0.05712087]
[1766511237140,0.05936469,124.22,124.19,7.30752087]
[1766511237348,0.05936469,124.22,124.19,11.64752087]
[1766511240646,6.16339042,124.25,124.19,11.64752087]
[1766511240948,102.2655,124.28,124.21,4.11]
[1766511240949,5.93339042,124.27,124.21,4.11]
[1766511241642,5.93339042,124.27,124.23,0.05116601]
[1766511241847,0.05121232,124.25,124.23,0.05116601]
[1766511242044,1.86460274,124.25,124.23,0.00116601]
[1766511242248,5.98460274,124.25,124.23,0.00116601]
[1766511242448,4.12,124.24,124.2,95.02]
[1766511242650,4.12,124.24,124.19,4.11]
[1766511243549,4.12,124.24,124.2,0.05884446]
[1766511251554,1.86460274,124.25,124.16,7.2518]
[1766511251555,4.12,124.22,124.16,7.2518]
[1766511251752,4.12,124.22,124.16,11.3618]
[1766511252352,0.06043706,124.2,124.18,0.05665662]
[1766511253858,4.12,124.24,124.18,4.16665662]
[1766511254053,5.93339042,124.24,124.18,4.11]
[1766511254955,0.0603414,124.22,124.2,0.05797165]
[1766511267974,4.12,124.24,124.2,0.05797165]
[1766511268273,4.12,124.27,124.2,4.16797165]
[1766511268472,4.12,124.25,124.2,4.11]
[1766511268672,4.12,124.24,124.17,4.11]
[1766511269070,0.05432204,124.22,124.19,0.05408484]
[1766511269658,4.12,124.21,124.13,4.11]
[1766511269861,4.12,124.19,124.13,4.11]
[1766511270165,4.12,124.18,124.11,4.11]
[1766511270367,4.12,124.17,124.11,4.11]
[1766511270769,0.05432708,124.15,124.13,0.06164661]
[1766511270962,0.05432708,124.15,124.13,0.00064279]
[1766511274177,4.06,124.14,124.05,4.39]
[1766511274470,4.06,124.12,124.05,4.39]
[1766511275273,0.05450961,124.1,124.07,0.05369812]
[1766511276570,4.11450961,124.1,124.07,0.00369812]
[1766511280377,4.11450961,124.1,124.04,95.06]
[1766511280576,4.11450961,124.1,124.01,4.39]
[1766511280577,4.06,124.08,124.01,4.39]
[1766511281280,4.06,124.06,123.99,99.47]
[1766511281474,0.0581572,124.04,124.01,0.05559238]
[1766511283975,7.2572,124.08,124.01,4.44559238]
[1766511283976,4.06,124.08,124.01,4.44559238]
[1766511285070,0.00288167,124.06,124.01,4.44559238]
[1766511285275,4.06,124.1,124.01,4.39]
[1766511285474,4.06,124.1,124.02,4.39]
[1766511285681,11.316,124.1,124.02,4.39]
[1766511286285,0.05703343,124.07,124.05,0.05322899]
[1766511287691,7.2554,124.11,124.05,4.44322899]
[1766511287988,99.14,124.12,124.05,4.44322899]
[1766511288591,0.05917338,124.1,124.05,4.44322899]
[1766511289785,4.11917338,124.1,124.05,0.05322899]
[1766511289985,4.06,124.08,124.05,0.05322899]
[1766511290186,6.90021598,124.07,123.99,4.39]
[1766511291182,0.05273043,124.04,124.02,0.05797442]
[1766511300182,4.06,124.07,124.02,0.05797442]
[1766511300386,4.06,124.07,124.02,7.31837442]
[1766511300683,4.06,124.07,124.02,11.70837442]
[1766511301396,0.05530474,124.06,124.02,11.70837442]
[1766511302090,0.05530474,124.06,124.03,7.2598]
[1766511304597,4.29,124.1,124.04,4.03]
[1766511304897,112.8188,124.16,124.07,4.03]
[1766511304898,7.13021598,124.16,124.07,4.03]
[1766511305194,4.29,124.15,124.09,7.2563]
[1766511305596,4.29,124.15,124.11,0.0536078]
[1766511305798,11.543,124.15,124.11,0.0536078]
[1766511305987,4.29,124.14,124.11,0.0036078]
[1766511307098,4.3487235,124.14,124.11,0.0036078]
[1766511310096,4.29,124.13,124.06,7.2577]
[1766511310302,4.29,124.13,124.06,11.2877]
[1766511311302,0.05455008,124.11,124.08,0.05964994]
[1766511313707,0.05455008,124.11,124.08,7.31634994]
[1766511313909,4.29,124.13,124.08,7.31634994]
[1766511315296,4.29,124.13,124.08,0.05964994]
[1766511315494,4.29,124.16,124.08,4.08964994]
[1766511315800,4.29,124.14,124.11,0.00015546]
[1766511316408,7.13021598,124.14,124.11,0.00015546]
[1766511316607,4.29,124.13,124.11,0.00015546]
[1766511318797,4.29,124.13,124.06,4.03]
[1766511319205,11.5443,124.13,124.06,4.03]
[1766511319805,0.05575073,124.11,124.08,0.06137683]
[1766511333318,4.13575073,124.11,124.08,0.00137683]
[1766511333631,4.13575073,124.11,124.03,4.3]
[1766511333814,4.08,124.1,124.03,11.5594]
[1766511334021,4.08,124.09,124.03,11.5594]
[1766511334317,4.08,124.09,124.02,95.12]
[1766511334318,4.08,124.07,124.02,95.12]
[1766511334521,4.08,124.05,123.99,4.3]
[1766511334727,0.06133839,124.03,124.01,0.05646166]
[1766511335216,4.14133839,124.03,123.98,9.612e-05]
[1766511335419,0.06133839,124.03,123.98,1.81958758]
[1766511335618,112.8743,124.1,123.98,1.81958758]
[1766511335619,4.08,124.1,124.01,4.3]
[1766511335818,5.89949146,124.1,124.02,4.3]
[1766511336725,0.06179687,124.07,124.05,0.05228726]
[1766511337219,7.46883259,124.2,124.05,4.35228726]
[1766511337521,4.08,124.15,124.08,4.3]
[1766511338019,4.08,124.13,124.06,4.3]
[1766511338418,1.81949146,124.14,124.03,4.1]
[1766511338419,1.81949146,124.1,124.03,4.1]
[1766511338719,4.39,124.09,124.02,11.36]
[1766511339115,4.39,124.09,124.03,4.1]
[1766511339623,0.05899422,124.07,124.05,0.05457506]
[1766511345934,6.20949146,124.06,124.0,4.1]
[1766511346627,4.39,124.05,123.98,4.10009612]
[1766511346822,0.05147677,124.03,124.0,0.05334228]
[1766511347127,6.26096823,124.03,124.0,0.05334228]
[1766511348716,6.26096823,124.03,124.0,0.00334228]
[1766511348923,4.39,124.02,123.98,9.612e-05]
[1766511349330,6.20949146,124.02,123.98,9.612e-05]
[1766511349922,6.20949146,124.02,123.99,0.05549612]
[1766511352126,4.39,124.01,123.98,9.612e-05]
[1766511353133,4.39,124.01,123.98,0.05478527]
[1766511355333,4.39,124.01,123.98,0.00478527]
[1766511357032,0.05147677,124.03,123.98,0.00478527]
[1766511357227,6.20949146,124.02,123.98,0.00478527]
[1766511357627,4.39,124.01,123.98,0.00478527]
[1766511359233,6.26096823,124.03,123.98,0.00478527]
[1766511361036,6.26096823,124.03,123.99,4.28]
[1766511361037,0.05147677,124.03,123.99,4.28]
[1766511361535,4.24,124.06,123.98,0.00478527]
[1766511361536,4.24,124.08,124.01,7.261]
[1766511361733,6.05949146,124.07,124.01,7.261]
[1766511362233,6.05949146,124.07,124.01,11.541]
[1766511362636,0.05154856,124.05,124.03,0.05525932]
[1766511364140,6.05949146,124.07,124.03,0.05525932]
[1766511364538,1.81949146,124.09,124.03,0.05525932]
[1766511364743,6.05949146,124.11,124.04,11.5392]
[1766511364935,0.0603722,124.09,124.06,0.05498902]
[1766511366141,6.11986366,124.09,124.06,0.00498902]
[1766511366438,1.81949146,124.07,124.02,4.28]
[1766511366942,4.24,124.08,124.02,4.28]
[1766511367343,0.0535366,124.06,124.04,0.00124905]
[1766511367543,1.81949146,124.05,124.0,99.46]
[1766511367740,1.81949146,124.05,124.0,4.28]
[1766511368538,1.81949146,124.05,124.01,0.05095467]
[1766511368744,0.0535366,124.06,124.01,0.05095467]
[1766511369136,4.2935366,124.06,124.01,0.05095467]
[1766511369439,4.24,124.02,123.95,4.28]
[1766511369634,1.81949146,124.01,123.95,4.28]
[1766511370335,0.0540037,123.99,123.97,0.05989863]
[1766511370537,1.81949146,124.03,123.97,0.05989863]
[1766511370741,1.81949146,124.03,123.97,11.60319863]
[1766511371444,0.05856399,124.01,123.97,11.60319863]
[1766511372446,0.05856399,124.01,123.97,0.05989863]
[1766511376042,1.87805545,124.01,123.97,0.05989863]
[1766511378344,6.11805545,124.01,123.97,0.05989863]
[1766511378546,1.81949146,123.99,123.93,11.5455]
[1766511378736,6.05949146,123.99,123.93,11.5455]
[1766511379549,0.0608299,123.97,123.95,0.06095065]
[1766511379747,6.05949146,124.01,123.95,0.06095065]
[1766511379948,4.24,124.01,123.95,0.06095065]
[1766511380853,0.05428634,123.99,123.95,0.06095065]
[1766511381453,0.05428634,123.99,123.95,7.32535065]
[1766511382651,0.05428634,123.99,123.95,11.60535065]
[1766511385145,0.05428634,123.99,123.95,11.60535065]
[1766511389449,0.05428634,123.99,123.96,11.5439]
[1766511390556,0.05428634,123.99,123.95,0.06095065]
[1766511390752,0.05428634,123.99,123.95,4.24095065]
[1766511391147,0.05428634,123.99,123.96,4.18]
[1766511394756,4.35428634,123.99,123.95,0.06095065]
[1766511394958,4.35428634,123.99,123.95,0.00882894]
[1766511395859,11.61658634,123.99,123.95,0.00882894]
[1766511397159,4.3,123.98,123.95,0.00882894]
[1766511398059,11.5631,123.98,123.95,0.00882894]
[1766511400160,4.3,123.98,123.95,0.00882894]
[1766511404858,7.31658634,123.99,123.95,0.00882894]
[1766511404859,0.05428634,123.99,123.95,0.00882894]
[1766511405161,4.35428634,123.99,123.95,0.00882894]
[1766511406166,14.4650951,123.99,123.95,0.00882894]
[1766511406368,4.3,123.98,123.95,0.00882894]
[1766511406772,4.3,123.98,123.9,4.23]
[1766511406773,4.3,123.96,123.9,4.23]
[1766511406975,4.3,123.96,123.88,7.09766375]
[1766511407261,4.3,123.96,123.88,4.23]
[1766511407666,0.05410368,123.93,123.91,0.05632199]
[1766511409263,4.3,123.99,123.91,4.28632199]
[1766511409466,4.3,123.99,123.91,4.23]
[1766511410065,4.3,123.99,123.9,4.23]
[1766511410266,0.05345608,123.96,123.93,0.05317083]
[1766511415375,4.35345608,123.96,123.93,0.05317083]
[1766511416075,4.35345608,123.96,123.93,0.00317083]
[1766511420970,4.45,123.95,123.89,7.2676]
[1766511421272,4.45,123.93,123.87,4.37]
[1766511421479,4.45,123.93,123.88,7.2686]
[1766511421672,4.45,123.93,123.87,4.37]
[1766511421868,0.05226621,123.91,123.89,0.0536025]
[1766511422576,4.45,123.95,123.89,7.3216025]
[1766511422774,4.45,123.95,123.89,0.0536025]
[1766511423476,4.45,123.95,123.89,4.4236025]
[1766511423682,0.05564717,123.93,123.9,7.2674]
[1766511425680,0.05564717,123.93,123.89,4.4236025]
[1766511427673,0.05564717,123.93,123.89,11.6916025]
[1766511430086,0.05564717,123.93,123.9,7.2673]
[1766511431782,0.05564717,123.93,123.89,4.4236025]
[1766511432589,0.05564717,123.93,123.89,11.6915025]
[1766511433400,4.50564717,123.93,123.86,208.3248]
[1766511433597,7.29830876,123.92,123.87,7.2688]
[1766511433793,7.29830876,123.92,123.81,113.1248]
[1766511433794,4.45,123.89,123.8,113.1338]
[1766511433993,4.45,123.87,123.81,11.6424]
[1766511434204,7.29830876,123.87,123.81,11.6424]
[1766511434402,4.45,123.87,123.81,124.7735]
[1766511434592,2.84830876,123.9,123.83,0.05121777]
[1766511434792,2.84830876,123.9,123.82,4.37]
[1766511435096,2.84830876,123.9,123.83,11.6416]
[1766511435293,2.84830876,123.9,123.84,4.37]
[1766511435495,0.05935388,123.88,123.86,0.05280394]
[1766511435890,2.84830876,123.93,123.86,0.05280394]
[1766511436105,2.84830876,123.93,123.85,4.37]
[1766511436395,2.84830876,123.89,123.79,4.37]
[1766511436700,2.84830876,123.88,123.82,4.37]
[1766511436904,0.05339319,123.86,123.84,0.05886018]
[1766511437290,2.84830876,123.94,123.86,4.37]
[1766511437487,4.45,123.93,123.86,4.37]
[1766511437696,2.84830876,123.92,123.86,4.37]
[1766511437890,4.45,123.91,123.84,4.37]
[1766511438293,0.0527106,123.89,123.86,0.05704409]
[1766511438689,4.5027106,123.89,123.86,0.05704409]
[1766511438894,7.35101936,123.89,123.82,99.65]
[1766511439088,7.35101936,123.89,123.82,4.37]
[1766511439295,4.45,123.84,123.73,4.37]
[1766511439490,4.45,123.8,123.73,4.37]
[1766511439690,4.45,123.8,123.73,117.5759]
[1766511439903,0.06014538,123.78,123.75,0.05688956]
[1766511441197,0.06014538,123.78,123.71,124.8683]
[1766511441800,0.06014538,123.78,123.72,11.6477]
[1766511442004,0.00014538,123.78,123.74,4.37]
[1766511442510,102.59830876,123.83,123.76,4.37]
[1766511442701,7.29830876,123.83,123.76,117.5455]
[1766511442908,7.29830876,123.83,123.77,4.37]
[1766511442909,2.84830876,123.83,123.77,4.37]
[1766511443108,2.84830876,123.84,123.77,4.37]
[1766511443302,0.05537696,123.82,123.79,0.05825295]
[1766511447503,2.84830876,123.85,123.79,11.70185295]
[1766511447915,7.29830876,123.85,123.79,7.33185295]
[1766511448512,0.05538108,123.83,123.79,11.70185295]
[1766511448918,102.63830876,123.87,123.8,4.37]
[1766511449216,7.29830876,123.87,123.8,11.6432]
[1766511449517,102.63830876,123.89,123.8,4.37]
[1766511449718,4.45,123.88,123.8,4.37]
[1766511450022,0.05615726,123.85,123.83,0.05944859]
[1766511451522,11.6279,123.9,123.83,0.05944859]
[1766511451816,7.20830876,123.89,123.83,0.05944859]
[1766511452033,4.36,123.89,123.83,0.05944859]
[1766511452515,0.06074236,123.87,123.83,117.64954859]
[1766511452705,0.06074236,123.87,123.84,0.06216178]
[1766511453311,0.06074236,123.87,123.84,7.33276178]
[1766511454217,0.06074236,123.87,123.84,0.06216178]
[1766511454621,0.06074236,123.87,123.84,0.00216178]
[1766511454822,4.42074236,123.87,123.8,107.0931]
[1766511455921,4.42074236,123.87,123.82,0.05499646]
[1766511456624,4.36,123.86,123.79,95.34]
[1766511457225,4.36,123.86,123.79,99.82]
[1766511457816,0.05448178,123.84,123.81,0.05124611]
[1766511458017,95.34,123.89,123.81,0.05124611]
[1766511458018,4.56645415,123.88,123.81,11.80384611]
[1766511458215,99.7,123.89,123.82,4.48]
[1766511458420,4.36,123.89,123.82,4.48]
[1766511459125,0.05153281,123.87,123.84,0.06120861]
[1766511460313,0.05153281,123.87,123.84,0.00120861]
[1766511460520,4.57153281,123.87,123.79,107.1336]
[1766511460733,4.52,123.87,123.79,11.7936]
[1766511461322,4.52,123.86,123.79,7.2736]
[1766511461521,0.05956946,123.84,123.82,0.00208856]
[1766511462328,4.52,123.83,123.72,1.40594699]
[1766511462632,4.52,123.81,123.71,4.52]
[1766511463425,0.05554464,123.77,123.75,0.0571878]
[1766511464329,4.52,123.81,123.75,0.0571878]
[1766511465328,0.05415591,123.79,123.75,0.0571878]
[1766511468021,4.56645415,123.83,123.75,4.5771878]
[1766511468223,9.08645415,123.84,123.75,4.52]
[1766511468422,9.08645415,123.84,123.76,4.52]
[1766511468623,4.52,123.84,123.76,4.52]
[1766511469025,0.05490422,123.81,123.79,0.05862611]
[1766511470236,4.52,123.84,123.79,0.05862611]
[1766511471327,0.05889764,123.83,123.79,0.05862611]
[1766511472730,0.05889764,123.83,123.79,4.57862611]
[1766511472941,4.52,123.87,123.79,4.57862611]
[1766511473138,4.52,123.87,123.79,4.52]
[1766511473839,0.05504577,123.84,123.82,0.05864124]
[1766511476233,0.05504577,123.84,123.78,7.2742]
[1766511476234,4.57504577,123.84,123.78,7.2742]
[1766511476641,4.57504577,123.84,123.76,99.88]
[1766511476842,4.52,123.84,123.76,107.1553]
[1766511477335,0.05362874,123.81,123.79,0.06079372]
[1766511480949,4.52,123.84,123.79,0.06079372]
[1766511481446,4.41,123.86,123.8,7.2733]
[1766511481947,0.05359826,123.84,123.82,0.05430113]
[1766511482146,7.36366086,123.91,123.82,0.05430113]
[1766511482147,4.41,123.9,123.82,4.58430113]
[1766511482341,4.41,123.9,123.82,4.53]
[1766511482542,4.41,123.9,123.81,7.2724]
[1766511482746,4.41,123.88,123.81,7.2724]
[1766511483144,0.03106581,123.86,123.83,0.05249438]
[1766511486959,0.00106581,123.86,123.83,4.58249438]
[1766511487256,0.00106581,123.86,123.83,11.85399438]
[1766511487465,11.6774,123.91,123.83,11.85399438]
[1766511487756,4.41,123.89,123.81,4.53]
[1766511487948,4.41,123.89,123.81,107.1424]
[1766511488147,4.41,123.89,123.81,11.8024]
[1766511488348,4.41,123.89,123.84,0.05153593]
[1766511489563,11.6784,123.89,123.84,0.05153593]
[1766511489749,4.41,123.89,123.84,0.05153593]
[1766511495963,6.23555981,123.89,123.84,0.05153593]
[1766511496355,1.82555981,123.89,123.84,0.05153593]
[1766511496557,4.41,123.88,123.84,0.00153593]
[1766511497461,0.05,123.87,123.84,0.00153593]
[1766511497762,4.46,123.87,123.84,0.00153593]
[1766511498462,0.05,123.87,123.84,0.00153593]
[1766511504662,6.28555981,123.87,123.84,0.00153593]
[1766511504867,4.41,123.86,123.84,0.00153593]
[1766511506371,0.05,123.87,123.84,0.00153593]
[1766511506864,4.46,123.87,123.84,0.00153593]
[1766511508562,6.23555981,123.86,123.84,0.00153593]
[1766511508870,4.41,123.85,123.8,7.2731]
[1766511509272,4.41,123.85,123.78,11.8044]
[1766511509771,0.05153593,123.83,123.8,0.0537494]
[1766511514380,0.05153593,123.83,123.8,4.6637494]
[1766511515579,0.05153593,123.83,123.8,0.0537494]
[1766511518881,0.05153593,123.83,123.76,4.61]
[1766511519977,0.05153593,123.83,123.78,0.05561925]
[1766511520178,0.05153593,123.83,123.78,4.66561925]
[1766511523077,0.00153593,123.83,123.78,11.93991925]
[1766511523281,0.00153593,123.83,123.79,4.61]
[1766511523668,0.00153593,123.83,123.79,11.8839]
[1766511523874,0.00153593,123.83,123.8,4.61]
[1766511524371,0.00153593,123.83,123.78,0.05561925]
[1766511528288,12.01323593,123.83,123.78,0.05561925]
[1766511529392,7.27323593,123.83,123.78,4.66561925]
[1766511529579,0.00153593,123.83,123.78,4.66561925]
[1766511532695,0.00153593,123.83,123.78,11.94011925]
[1766511533296,0.00153593,123.83,123.78,4.66561925]
[1766511536593,0.00153593,123.83,123.79,4.61]
[1766511541096,12.0096,123.87,123.79,4.61]
[1766511541698,12.0096,123.87,123.8,11.8033]
[1766511542101,0.0537494,123.85,123.82,0.05439674]
[1766511542497,0.0537494,123.85,123.82,4.58439674]
[1766511542704,2.85516437,123.88,123.82,4.58439674]
[1766511542903,12.0587,123.89,123.82,4.58439674]
[1766511543792,12.0587,123.89,123.82,11.85659674]
[1766511545306,4.79,123.88,123.82,11.85659674]
[1766511550012,7.64516437,123.9,123.83,11.8015]
[1766511550310,4.79,123.9,123.85,0.05667886]
[1766511550502,7.64516437,123.87,123.8,4.53]
[1766511551614,0.05373906,123.85,123.82,0.05348012]
[1766511558612,0.05373906,123.85,123.82,4.58348012]
[1766511559514,4.84373906,123.85,123.82,0.05348012]
[1766511559714,7.69890343,123.85,123.79,4.53]
[1766511560315,7.2714,123.84,123.79,4.53]
[1766511560713,7.2714,123.84,123.8,0.06003561]
[1766511564418,4.84373906,123.85,123.8,0.06003561]
[1766511564816,4.84373906,123.85,123.8,4.59003561]
[1766511565721,4.84373906,123.85,123.8,11.86333561]
[1766511565915,0.05373906,123.85,123.8,11.86333561]
[1766511566720,0.05373906,123.85,123.81,11.8028]
[1766511569225,0.00373906,123.85,123.83,4.53]
[1766511570218,0.00373906,123.85,123.83,0.05854792]
[1766511572523,7.47516437,123.84,123.76,4.96]
[1766511572821,4.62,123.83,123.77,7.2746]
[1766511573025,4.62,123.83,123.77,12.1246]
[1766511573426,0.05650222,123.81,123.79,0.05643043]
[1766511576232,2.85516437,123.84,123.79,12.18023043]
[1766511576427,4.61,123.85,123.79,4.90643043]
[1766511577224,0.06119317,123.83,123.79,4.90643043]
[1766511577425,0.06119317,123.83,123.8,7.2733]
[1766511585941,0.06119317,123.83,123.8,12.1233]
[1766511586641,0.06119317,123.83,123.8,4.85]
[1766511587341,0.00119317,123.83,123.8,4.85]
[1766511587641,0.00119317,123.83,123.8,100.19]
[1766511588845,0.00119317,123.83,123.81,4.85]
[1766511591449,79.69788042,124.26,123.85,4.85]
[1766511591450,7.42583655,123.92,123.85,4.85]
[1766511591753,6.4370142,123.91,123.86,95.36]
[1766511592551,6.4370142,123.91,123.87,0.06006773]
[1766511596752,1.8270142,123.91,123.87,4.91006773]
[1766511596955,1.8270142,123.93,123.87,4.91006773]
[1766511597153,1.8270142,123.93,123.88,7.2686]
[1766511598452,4.61,123.92,123.87,4.91006773]
[1766511598658,4.61,123.92,123.87,0.06006773]
[1766511599246,1.8270142,123.91,123.87,0.06006773]
[1766511599452,4.61,123.92,123.87,0.06006773]
[1766511600254,4.61,123.92,123.87,7.32926773]
[1766511600959,4.61,123.92,123.88,7.2684]
[1766511602164,4.61,123.92,123.87,4.72006773]
[1766511603153,1.8270142,123.94,123.87,4.72006773]
[1766511603353,6.6570142,123.94,123.87,4.72006773]
[1766511603556,2.90122864,123.95,123.89,4.66]
[1766511603749,2.90122864,123.95,123.91,0.05475188]
[1766511604763,7.73122864,123.95,123.91,0.05475188]
[1766511604955,7.73122864,123.95,123.87,113.0737]
[1766511604956,1.8270142,123.93,123.87,99.98]
[1766511605353,4.83,123.94,123.87,99.98]
[1766511605656,4.83,123.94,123.88,11.9285]
[1766511606056,0.05576339,123.92,123.9,0.05706448]
[1766511610564,4.83,123.94,123.9,0.05706448]
[1766511610859,2.90122864,123.95,123.9,0.05706448]
[1766511611163,6.6570142,123.96,123.91,7.2669]
[1766511612354,4.83,123.96,123.92,7.2662]
[1766511612558,1.8270142,123.97,123.93,0.05409577]
[1766511612955,102.0170142,123.98,123.93,7.31969577]
[1766511613257,4.83,123.97,123.93,7.31969577]
[1766511616161,4.83,123.97,123.93,0.05409577]
[1766511616470,6.6570142,123.96,123.89,99.96]
[1766511617560,0.05409577,123.94,123.91,0.06082907]
[1766511618767,6.6570142,123.98,123.91,11.98762907]
[1766511619156,4.83,123.97,123.91,11.98762907]
[1766511623478,4.83,123.96,123.91,4.72082907]
[1766511638277,4.62,123.94,123.88,4.89]
[1766511639479,0.05944488,123.92,123.9,0.055318]
[1766511639981,0.05944488,123.92,123.88,4.89]
[1766511640781,0.05944488,123.92,123.89,0.05194186]
[1766511641671,4.67944488,123.92,123.89,0.00194186]
[1766511641882,7.53056554,123.92,123.86,4.89]
[1766511642085,7.47112066,123.92,123.86,4.89]
[1766511642378,4.62,123.92,123.86,4.89]
[1766511642775,0.05831391,123.9,123.88,0.05974082]
[1766511654898,7.32601391,123.9,123.82,7.2717]
[1766511655192,4.62,123.88,123.83,4.89]
[1766511656096,0.06082749,123.87,123.84,0.05851068]
[1766511660393,0.06082749,123.87,123.84,4.94851068]
[1766511660890,7.55112066,123.92,123.84,4.94851068]
[1766511661101,4.7,123.92,123.85,4.84]
[1766511661808,0.06151238,123.9,123.87,0.05248347]
[1766511661991,0.06151238,123.9,123.87,4.89248347]
[1766511662497,102.85112066,123.94,123.87,4.89248347]
[1766511663197,4.7,123.93,123.87,4.89248347]
[1766511663398,0.05841084,123.91,123.87,4.89248347]
[1766511664902,4.75841084,123.91,123.87,0.05248347]
[1766511667499,0.05841084,123.91,123.87,4.89248347]
[1766511668709,0.05841084,123.91,123.87,12.16158347]
[1766511671013,4.75841084,123.91,123.87,0.05248347]
[1766511678816,4.7,123.9,123.84,102.571]
[1766511679914,0.06182531,123.88,123.86,0.05872862]
[1766511687317,4.76182531,123.88,123.82,12.1117]
[1766511688222,4.76182531,123.88,123.84,0.05611155]
[1766511689415,0.06182531,123.88,123.84,4.89611155]
[1766511690720,0.06182531,123.88,123.84,12.16701155]
[1766511696934,7.42631892,123.95,123.85,4.69]
[1766511697235,4.48,123.96,123.88,4.69]
[1766511697618,4.48,123.94,123.88,4.69]
[1766511698023,0.05229531,123.92,123.9,0.05989413]
[1766511699124,4.48,123.96,123.9,0.05989413]
[1766511699331,4.48,123.96,123.9,4.74989413]
[1766511700045,6.30363902,123.96,123.9,4.74989413]
[1766511700247,0.06194762,123.94,123.9,4.74989413]
[1766511700434,1.88558664,123.94,123.9,0.05989413]
[1766511701738,0.06194762,123.94,123.9,0.05989413]
[1766511706751,4.54194762,123.94,123.9,0.05989413]
[1766511709446,6.36558664,123.94,123.9,0.05989413]
[1766511710136,4.54194762,123.94,123.9,0.05989413]
[1766511710847,4.54194762,123.94,123.88,7.2683]
[1766511711257,0.06194762,123.94,123.9,4.69]
[1766511711954,0.06194762,123.94,123.91,0.05742839]
[1766511713657,0.06194762,123.94,123.91,4.74742839]
[1766511715953,0.06194762,123.94,123.91,0.05742839]
[1766511716355,4.54194762,123.94,123.91,0.05742839]
[1766511716554,4.54194762,123.94,123.86,113.084]
[1766511716555,4.54194762,123.94,123.87,11.9588]
[1766511716747,1.82363902,123.93,123.87,11.9588]
[1766511716943,6.30363902,123.93,123.87,11.9588]
[1766511717757,0.06049229,123.91,123.89,0.05443806]
[1766511719260,0.00049229,123.91,123.89,0.05443806]
[1766511721758,0.00049229,123.91,123.89,4.66443806]
[1766511722962,0.00049229,123.91,123.89,0.05443806]
[1766511723758,0.00049229,123.91,123.89,4.66443806]
[1766511729368,4.36049229,123.91,123.89,0.00443806]
[1766511729658,0.00049229,123.91,123.89,0.00443806]
[1766511736775,4.36049229,123.91,123.89,0.00443806]
[1766511739558,4.36,123.9,123.84,4.61]
[1766511739764,1.82363902,123.89,123.84,4.61]
[1766511739965,11.6277,123.9,123.84,4.61]
[1766511740473,11.6277,123.9,123.86,0.05364519]
[1766511740474,0.0555967,123.88,123.86,0.05364519]
[1766511741369,0.0555967,123.88,123.81,2.05915053]
[1766511741370,4.36,123.87,123.82,99.91]
[1766511742264,4.36,123.87,123.83,0.05127338]
[1766511744064,0.0555967,123.88,123.83,0.05127338]
[1766511744265,0.0555967,123.88,123.83,4.66127338]
[1766511744769,0.0555967,123.88,123.83,99.96127338]